Workbook

Sheet input1 (hidden)
A2: Bedrijfsresultaat fritesstudio 2018
B4: omschrijving verkoop | C4: jan | D4: feb | E4: mrt | F4: apr | G4: mei | H4: jun | I4: jul | J4: aug | K4: sep | L4: okt | M4: nov | N4: dec | O4: totaal omzet | P4: Inkoop
B5: frites | C5: € 7,875.00 | D5: € 8,662.50 | E5: € 7,087.50 | F5: € 7,875.00 | G5: € 9,450.00 | H5: € 11,812.50 | I5: € 12,206.25 | J5: € 12,048.75 | K5: € 11,418.75 | L5: € 11,025.00 | M5: € 11,103.75 | N5: € 12,206.25 | O5: =SUM(C5:N5) -> € 122,771.25 | P5: =O5*30% -> € 36,831.38
B6: fish & chips | C6: € 9,187.50 | D6: € 8,268.75 | E6: € 9,187.50 | F6: € 9,003.75 | G6: € 10,106.25 | H6: € 11,025.00 | I6: € 12,127.50 | J6: € 12,311.25 | K6: € 10,106.25 | L6: € 9,738.75 | M6: € 9,555.00 | N6: € 10,473.75 | O6: =SUM(C6:N6) -> € 121,091.25 | P6: =O6*30% -> € 36,327.38
B7: friet stoofvlees | C7: € 4,987.50 | D7: € 5,985.00 | E7: € 4,987.50 | F7: € 4,788.00 | G7: € 5,187.00 | H7: € 3,990.00 | I7: € 4,189.50 | J7: € 3,990.00 | K7: € 4,389.00 | L7: € 4,189.50 | M7: € 4,987.50 | N7: € 6,384.00 | O7: =SUM(C7:N7) -> € 58,054.50 | P7: =O7*39% -> € 22,641.26
B8: kapsalon | C8: € 10,017.00 | D8: € 10,851.75 | E8: € 10,350.90 | F8: € 10,017.00 | G8: € 11,018.70 | H8: € 11,185.65 | I8: € 11,018.70 | J8: € 10,851.75 | K8: € 10,017.00 | L8: € 9,015.30 | M8: € 9,182.25 | N8: € 9,516.15 | O8: € 123,042.15 | P8: € 36,912.65
B9: frisdranken | C9: € 6,300.00 | D9: € 6,930.00 | E9: € 5,985.00 | F9: € 6,300.00 | G9: € 5,544.00 | H9: € 7,560.00 | I9: € 7,686.00 | J9: € 7,308.00 | K9: € 6,930.00 | L9: € 6,363.00 | M9: € 5,040.00 | N9: € 4,814.00 | O9: € 76,760.00 | P9: € 23,028.00
B10: bier | C10: € 2,520.00 | D10: € 2,100.00 | E10: € 1,428.00 | F10: € 1,680.00 | G10: € 3,360.00 | H10: € 8,400.00 | I10: € 9,240.00 | J10: € 9,408.00 | K10: € 8,400.00 | L10: € 8,316.00 | M10: € 7,140.00 | N10: € 6,384.00 | O10: € 68,376.00 | P10: € 20,512.80
B11: wijn | C11: € 2,100.00 | D11: € 1,575.00 | E11: € 1,575.00 | F11: € 2,100.00 | G11: € 2,310.00 | H11: € 5,775.00 | I11: € 5,880.00 | J11: € 6,300.00 | K11: € 5,670.00 | L11: € 5,355.00 | M11: € 4,200.00 | N11: € 5,775.00 | O11: =SUM(C11:N11) -> € 48,615.00 | P11: € 14,584.50
B12: Totaal omzet | O12: =SUM(O5:O10) -> € 570,095.15
B15: Overige kosten
B16: gas | C16: € 7,500.00
B17: elektra | C17: € 3,500.00
B18: huur pand incl. btw | C18: € 36,000.00
B19: verpakking (disposables) | C19: € 50,400.00
B20: personeelskosten | C20: € 225,000.00
H25: Mireille, hier zit een koppeling met de cel van de som van de inkoop; maar die koppeling mag er van mij wel uit (voorlopig?)
B30: prijslijst | C30: € | H30: Mireille, de prijslijst wel opnemen in het bestand
B31: frites met saus naar keuze | C31: 3.75 | D31: 21 | E31: 155 | F31: =E31*D31*C31 -> € 12,206.25
B32: fish & chips | C32: 8.75 | D32: 21 | E32: 57 | F32: =E32*D32*C32 -> € 10,473.75
B33: friet stoofvlees | C33: 9.5 | D33: 21 | E33: 32 | F33: € 6,384.00
B34: kapsalon | C34: 7.95 | D34: 21 | E34: 57 | F34: € 9,516.15
B35: frisdranken | C35: 2.5 | D35: 21 | E35: 75 | F35: € 3,937.50
B36: bier (1/2 liter) | C36: 4 | D36: 21 | E36: 76 | F36: € 6,384.00 | I36: gebruik het werkblad bedrijfsresultaat
B37: wijn (flesje 250 ml) | C37: 5 | D37: 21 | E37: 55 | F37: € 5,775.00
E39: =SUM(E31:E38) -> 507

Sheet input2 (hidden)
A1: Bedrijfsresultaat fritesstudio 2018
B3: omschrijving verkoop | C3: jan-feb | D3: mrt-apr | E3: mei-jun | F3: jul-aug | G3: sep-okt | H3: nov-dec | I3: totaal omzet | J3: Inkoop
B4: frites | C4: € 16,537.50 | D4: € 14,962.50 | E4: € 21,262.50 | F4: € 24,255.00 | G4: € 22,443.75 | H4: € 23,310.00 | I4: =SUM(C4:H4) -> € 122,771.25 | J4: =I4*30% -> € 36,831.38
B5: fish & chips | C5: € 17,456.25 | D5: € 18,191.25 | E5: € 21,131.25 | F5: € 24,438.75 | G5: € 19,845.00 | H5: € 20,028.75 | I5: € 121,091.25 | J5: =I5*30% -> € 36,327.38
B6: friet stoofvlees | C6: € 10,972.50 | D6: € 9,775.50 | E6: € 9,177.00 | F6: € 8,179.50 | G6: € 8,578.50 | H6: € 11,371.50 | I6: € 58,054.50 | J6: =I6*39% -> € 22,641.26
B7: kapsalon | C7: € 20,868.75 | D7: € 20,367.90 | E7: € 22,204.35 | F7: € 21,870.45 | G7: € 19,032.30 | H7: € 18,698.40 | I7: € 123,042.15 | J7: € 36,912.65
B8: frisdranken | C8: € 13,230.00 | D8: € 12,285.00 | E8: € 13,104.00 | F8: € 14,994.00 | G8: € 13,293.00 | H8: € 9,854.00 | I8: € 76,760.00 | J8: € 23,028.00
B9: bier | C9: € 4,620.00 | D9: € 3,108.00 | E9: € 11,760.00 | F9: € 18,648.00 | G9: € 16,716.00 | H9: € 13,524.00 | I9: € 68,376.00 | J9: € 20,512.80
B10: wijn | C10: € 3,675.00 | D10: € 3,675.00 | E10: € 8,085.00 | F10: € 12,180.00 | G10: € 11,025.00 | H10: € 9,975.00 | I10: € 48,615.00 | J10: € 14,584.50
B11: Totaal omzet | I11: =SUM(I4:I10) -> € 618,710.15
B14: Overige kosten
B15: gas | C15: € 7,500.00 | H15: eventu de kolommen inkoop en totaal omzet van plaats wisselen
B16: elektra | C16: € 3,500.00 | H16: en te overwegen is om bij totaal omzet geen getallen in te vullen
B17: huur pand incl. btw | C17: € 36,000.00
B18: verpakking (disposables) | C18: € 50,400.00
B19: personeelskosten | C19: € 225,000.00
B24: prijslijst | C24: €
B25: frites met saus naar keuze | C25: 3.75 | D25: 21 | E25: 155 | F25: =E25*D25*C25 -> € 12,206.25
B26: fish & chips | C26: 8.75 | D26: 21 | E26: 57 | F26: =E26*D26*C26 -> € 10,473.75
B27: friet stoofvlees | C27: 9.50 | D27: 21 | E27: 32 | F27: € 6,384.00
B28: kapsalon | C28: 7.95 | D28: 21 | E28: 57 | F28: € 9,516.15 | H28: gebruik het werkblad bedrijfsresultaat
B29: frisdranken | C29: 2.50 | D29: 21 | E29: 75 | F29: € 3,937.50
B30: bier (1/2 liter) | C30: 4.00 | D30: 21 | E30: 76 | F30: € 6,384.00
B31: wijn (flesje 250 ml) | C31: 5.00 | D31: 21 | E31: 55 | F31: € 5,775.00
E33: =SUM(E25:E32) -> 507

Sheet bedrijfsresultaat
B2: Bedrijfsresultaat Restaria 2018
B4: omschrijving verkoop | C4: omzet jan-feb | D4: omzet mrt-apr | E4: omzet mei-jun | F4: omzet jul-aug | G4: omzet sep-okt | H4: omzet nov-dec | I4: inkoopkosten | J4: jaaromzet
B5: frites met saus | C5: € 16,537.50 | D5: € 14,962.50 | E5: € 21,262.50 | F5: € 24,255.00 | G5: € 22,443.75 | H5: € 23,310.00 | I5: =H5*30% -> € 6,993.00 | J5: =SUM(C5:H5) -> € 122,771.25
B6: fish & chips | C6: € 17,456.25 | D6: € 18,191.25 | E6: € 21,131.25 | F6: € 24,438.75 | G6: € 19,845.00 | H6: € 20,028.75 | I6: =H6*30% -> € 6,008.63 | J6: =SUM(C6:H6) -> € 121,091.25
B7: frites stoofvlees | C7: € 10,972.50 | D7: € 9,775.50 | E7: € 9,177.00 | F7: € 8,179.50 | G7: € 8,578.50 | H7: € 11,371.50 | I7: € 3,411.45 | J7: € 58,054.50
B8: kapsalon | C8: € 20,868.75 | D8: € 20,367.90 | E8: € 22,204.35 | F8: € 21,870.45 | G8: € 19,032.30 | H8: € 18,698.40 | I8: € 5,609.52 | J8: € 123,042.15
B9: frisdranken | C9: € 13,230.00 | D9: € 12,285.00 | E9: € 13,104.00 | F9: € 14,994.00 | G9: € 13,293.00 | H9: € 9,854.00 | I9: € 2,956.20 | J9: € 76,760.00
B10: bier | C10: € 4,620.00 | D10: € 3,108.00 | E10: € 11,760.00 | F10: € 18,648.00 | G10: € 16,716.00 | H10: € 13,524.00 | I10: € 4,057.20 | J10: € 68,376.00
B11: wijn | C11: € 3,675.00 | D11: € 3,675.00 | E11: € 8,085.00 | F11: € 12,180.00 | G11: € 11,025.00 | H11: € 9,975.00 | I11: € 2,992.50 | J11: € 48,615.00
B12: totale jaaromzet
B14: overige kosten op jaarbasis | D14: Bereken het aantal verkochte porties fis & chips
B15: gas | C15: € 7,500.00
B16: elektra | C16: € 3,500.00
B17: huur pand incl. btw | C17: € 36,000.00 | D17: Bereken de afzet van de frisdranken
B18: verpakking (disposables) | C18: € 50,400.00
B19: personeelskosten | C19: € 225,000.00
D20: Bereken hierboven (in de grijze vlakken) de omzet per maand van januari t/m december
B21: prijslijst per verkochte eenheid
B22: frites met saus | C22: € 3.75
B23: fish & chips | C23: € 8.75 | G23: Bereken de gegevens:
B24: frites stoofvlees | C24: € 9.50 | G24: Jaaromzet alle producten:
B25: kapsalon | C25: € 7.95 | G25: Inkoopkosten alle producten:
B26: frisdranken | C26: € 2.50 | G26: Brutowinst:
B27: bier (1/2 liter) | C27: € 4.00 | G27: Bedrijfskosten:
B28: wijn (flesje 250 ml) | C28: € 5.00 | G28: Nettowinst 2018:
